bitfinex/quotes_BTCUSD_20250512
["timestamp","ask_amount","ask_price","bid_price","bid_amount"]
[1747060194508,0.21371605,102940.0,102900.0,0.04052133]
[1747060194509,0.22349511,102910.0,102900.0,0.04052133]
[1747060194734,0.21377855,102910.0,102900.0,0.00962133]
[1747060194980,0.21377855,102910.0,102900.0,0.08749537]
[1747060195193,0.21377855,102910.0,102900.0,0.47173367]
[1747060195437,0.23321214,102910.0,102900.0,0.18334967]
[1747060195668,0.22356056,102880.0,102870.0,0.46018133]
[1747060195898,0.20412064,102880.0,102870.0,1.73460441]
[1747060196136,0.20412064,102880.0,102870.0,1.82358213]
[1747060196358,0.20411705,102890.0,102880.0,0.17496044]
[1747060196594,0.19439879,102890.0,102880.0,2.80004049]
[1747060196828,0.19439879,102890.0,102880.0,2.81947947]
[1747060197070,0.19434457,102910.0,102890.0,0.00971902]
[1747060197305,0.21377779,102910.0,102900.0,0.47073561]
[1747060197538,0.2137775,102910.0,102900.0,1.00010161]
[1747060197759,0.19434457,102910.0,102900.0,1.28444667]
[1747060198007,0.21377835,102910.0,102900.0,1.02271491]
[1747060198236,0.21377835,102910.0,102900.0,0.72826091]
[1747060198494,0.19434457,102910.0,102900.0,1.12525687]
[1747060198722,0.19706385,102910.0,102900.0,0.64480347]
[1747060198951,0.19706329,102910.0,102900.0,0.64480347]
[1747060199182,0.19434457,102910.0,102900.0,0.82944826]
[1747060199412,0.19431963,102940.0,102910.0,0.16519278]
[1747060199636,0.21375767,102920.0,102910.0,0.27139463]
[1747060199875,0.21375767,102920.0,102910.0,0.00962133]
[1747060200121,0.2040413,102920.0,102910.0,0.71699863]
[1747060200356,0.19430681,102930.0,102920.0,0.18460816]
[1747060200597,0.213747,102940.0,102920.0,2.76503446]
[1747060200598,0.21371567,102940.0,102920.0,2.76503446]
[1747060200823,0.22345112,102930.0,102920.0,0.50213561]
[1747060201055,0.22351625,102900.0,102890.0,0.0303]
[1747060201283,0.19438235,102890.0,102860.0,0.07122133]
[1747060201523,0.21385672,102880.0,102870.0,0.38235]
[1747060201764,0.19443904,102860.0,102850.0,0.4196]
[1747060201992,0.21392349,102840.0,102830.0,0.50103561]
[1747060202218,0.20419993,102840.0,102830.0,0.342527]
[1747060202448,0.23337031,102840.0,102830.0,0.222663]
[1747060202674,0.21398553,102810.0,102800.0,0.5291023]
[1747060202904,0.19453112,102820.0,102800.0,0.74562334]
[1747060203142,0.20425942,102810.0,102800.0,0.77662334]
[1747060203378,0.21398629,102810.0,102800.0,0.1268543]
[1747060203614,0.21398629,102810.0,102790.0,0.836589]
[1747060203615,0.21398572,102810.0,102790.0,0.836589]
[1747060203853,0.19453112,102820.0,102800.0,0.47073561]
[1747060204099,0.11039515,102820.0,102810.0,0.16535337]
[1747060204325,0.19454804,102850.0,102840.0,0.00972384]
[1747060204554,0.19454804,102850.0,102840.0,0.737542]
[1747060204555,0.3194795,102850.0,102840.0,0.737542]
[1747060204788,0.2139025,102850.0,102840.0,0.4358543]
[1747060205026,0.2139025,102850.0,102840.0,0.0958543]
[1747060205027,0.21390306,102850.0,102840.0,0.0958543]
[1747060205261,0.21390306,102850.0,102800.0,0.00962133]
[1747060205262,0.21398629,102810.0,102800.0,0.00962133]
[1747060205511,0.21398629,102810.0,102800.0,0.00862133]
[1747060205758,0.21402717,102790.0,102780.0,0.16616812]
[1747060205976,0.21402811,102790.0,102780.0,0.0007664]
[1747060206482,0.02919905,102740.0,102720.0,0.02338447]
[1747060206730,0.29195573,102770.0,102720.0,0.02338447]
[1747060206731,0.22384218,102750.0,102730.0,1.31587549]
[1747060207004,0.21413208,102740.0,102730.0,0.0958543]
[1747060207236,0.19466614,102740.0,102730.0,0.0958543]
[1747060207477,0.02920417,102720.0,102710.0,0.0319]
[1747060207722,0.21419482,102710.0,102700.0,0.49763404]
[1747060207961,0.19466614,102740.0,102730.0,0.00973425]
[1747060208196,0.1946472,102750.0,102740.0,0.17519932]
[1747060208197,0.20437908,102750.0,102740.0,0.17519932]
[1747060208421,0.3245064,102750.0,102740.0,0.600324]
[1747060208635,0.11039515,102750.0,102740.0,0.81805568]
[1747060208859,0.23357492,102750.0,102740.0,0.15352]
[1747060209069,0.23357492,102750.0,102730.0,0.61615617]
[1747060209070,0.20437899,102750.0,102730.0,0.61615617]
[1747060209288,0.19466301,102790.0,102770.0,0.01946064]
[1747060209547,0.19466301,102790.0,102780.0,1.152747]
[1747060209548,0.31960984,102790.0,102780.0,1.152747]
[1747060209774,0.29042575,102790.0,102750.0,0.71292094]
[1747060210013,0.19457145,102790.0,102770.0,0.51514752]
[1747060210230,0.1945336,102810.0,102790.0,0.00972819]
[1747060210454,0.1945336,102810.0,102750.0,0.00862133]
[1747060210455,0.22382135,102760.0,102750.0,0.00862133]
[1747060210674,0.21408528,102770.0,102750.0,0.80113504]
[1747060210895,0.19462521,102780.0,102760.0,2.08709051]
[1747060210896,0.21404837,102780.0,102760.0,2.08709051]
[1747060211113,0.22386519,102740.0,102730.0,0.0324]
[1747060211339,0.19462826,102760.0,102730.0,0.72233798]
[1747060211573,0.19466614,102740.0,102730.0,0.3236343]
[1747060211800,0.00973444,102720.0,102710.0,0.19631455]
[1747060212035,0.21415236,102730.0,102720.0,0.259137]
[1747060212249,0.00973434,102720.0,102710.0,0.20605022]
[1747060212473,0.21417291,102720.0,102710.0,0.9672323]
[1747060212711,0.22390763,102720.0,102710.0,0.4127593]
[1747060212966,0.21417396,102720.0,102710.0,0.0958543]
[1747060213203,0.20449821,102690.0,102680.0,0.16556231]
[1747060213423,0.20448383,102710.0,102690.0,0.1752834]
[1747060213648,0.0958543,102710.0,102700.0,0.16553047]
[1747060213883,0.22390783,102720.0,102710.0,0.4957784]
[1747060214106,0.20443867,102720.0,102700.0,0.51526728]
[1747060214337,0.2141732,102720.0,102710.0,0.56245995]
[1747060214632,0.21415236,102730.0,102710.0,1.09010631]
[1747060214855,0.21415246,102730.0,102720.0,0.370505]
[1747060215073,0.19471849,102760.0,102730.0,0.16548175]
[1747060215291,0.11531759,102750.0,102740.0,1.018486]
[1747060215511,0.22379956,102770.0,102750.0,0.15571776]
[1747060215749,0.03892772,102750.0,102730.0,0.63510501]
[1747060215968,0.20439925,102740.0,102730.0,0.0958543]
[1747060216183,0.01946727,102730.0,102720.0,0.65570268]
[1747060216414,0.23361944,102730.0,102720.0,0.27108684]
[1747060216640,0.21888044,102770.0,102760.0,0.16543372]
[1747060216857,0.11039515,102770.0,102760.0,1.37848856]
[1747060217076,0.79464377,102800.0,102780.0,0.02918646]
[1747060217077,0.19464377,102800.0,102780.0,0.02918646]
[1747060217309,0.00972791,102790.0,102780.0,0.34862133]
[1747060217555,0.19462269,102830.0,102810.0,0.00972658]
[1747060217781,0.41944805,102830.0,102820.0,1.22895547]
[1747060218004,0.2491616,102840.0,102830.0,0.17504561]
[1747060218005,0.04459997,102840.0,102830.0,0.17504561]
[1747060218229,0.19449576,102830.0,102800.0,0.63607723]
[1747060218455,0.20427506,102810.0,102800.0,0.03862133]
[1747060218683,0.00972497,102820.0,102810.0,0.77098906]
[1747060218907,0.20425971,102810.0,102800.0,0.16426335]
[1747060219129,0.00972649,102810.0,102800.0,3.10447563]
[1747060219360,0.19457145,102790.0,102780.0,0.00862133]
[1747060219594,0.22375564,102790.0,102780.0,0.0312]
[1747060219836,0.0097297,102770.0,102760.0,0.16432393]
[1747060220085,0.20430002,102790.0,102770.0,1.11467233]
[1747060220317,0.21406996,102770.0,102760.0,0.00862133]
[1747060220594,0.01946007,102770.0,102760.0,0.0958543]
[1747060220812,0.21411087,102750.0,102740.0,0.00862133]
[1747060221078,0.01946358,102750.0,102740.0,0.55507731]
[1747060221354,0.21408966,102760.0,102750.0,0.17518238]
[1747060221607,0.0194595,102770.0,102760.0,0.16543382]
[1747060221834,0.20435882,102760.0,102750.0,0.25157206]
[1747060222071,0.22382135,102760.0,102750.0,0.0958543]
[1747060222281,0.19460932,102770.0,102760.0,0.00973122]
[1747060222506,0.22379985,102770.0,102760.0,0.00973141]
[1747060222728,0.02918958,102770.0,102760.0,0.00973141]
[1747060222956,0.23353099,102770.0,102750.0,0.0958543]
[1747060223192,0.21409041,102760.0,102750.0,0.0958543]
[1747060223427,0.0194614,102760.0,102750.0,0.26130392]
[1747060223618,0.00973065,102760.0,102750.0,0.29049985]
[1747060223866,0.0194614,102760.0,102750.0,0.2710358]
[1747060224097,0.02918968,102770.0,102760.0,0.18488947]
[1747060224322,0.22861072,102770.0,102750.0,0.15571726]
[1747060224556,0.04373119,102770.0,102760.0,1.13390294]
[1747060224800,0.01454085,102770.0,102760.0,0.75417469]
[1747060225025,0.02918684,102780.0,102770.0,0.18487817]
[1747060225275,0.0097263,102810.0,102780.0,0.1556723]
[1747060225506,1.20129351,102840.0,102830.0,0.00972478]
[1747060225507,0.19456928,102840.0,102830.0,0.00972478]
[1747060225730,0.30977854,102840.0,102830.0,0.00972478]
[1747060225950,0.00972251,102850.0,102840.0,0.00972384]
[1747060226181,0.00972176,102860.0,102850.0,0.17501129]
[1747060226422,0.01944494,102850.0,102840.0,0.20309589]
[1747060226655,0.00972157,102860.0,102850.0,0.17501185]
[1747060226921,0.20414048,102870.0,102860.0,0.16527299]
[1747060227155,0.21388255,102860.0,102850.0,0.0958543]
[1747060227397,0.22366137,102840.0,102830.0,0.10557899]
[1747060227651,0.23339263,102830.0,102820.0,0.19693471]
[1747060227885,0.00972507,102820.0,102810.0,0.52370071]
[1747060228121,0.21394523,102830.0,102810.0,1.0371454]
[1747060228354,0.00972497,102820.0,102810.0,0.64262862]
[1747060228606,0.22366898,102830.0,102820.0,0.40672873]
[1747060228837,0.21396567,102820.0,102810.0,0.0958543]
[1747060229097,0.22373425,102800.0,102790.0,0.00862133]
[1747060229347,0.22373491,102800.0,102790.0,0.10447563]
[1747060229591,0.21402717,102790.0,102780.0,0.61680163]
[1747060229884,0.21402717,102790.0,102780.0,0.6703133]
[1747060230127,0.20429917,102790.0,102780.0,0.8398556]
[1747060230357,0.22375526,102790.0,102780.0,0.527529]
[1747060230589,0.2140283,102790.0,102780.0,0.4202]
[1747060230843,0.19457145,102790.0,102780.0,0.00972933]
[1747060231068,0.21402811,102790.0,102770.0,0.22539846]
[1747060231294,0.22377703,102780.0,102770.0,0.13637563]
[1747060231532,0.00973084,102760.0,102750.0,0.44002133]
[1747060231772,0.214086,102770.0,102750.0,0.50887349]
[1747060231773,0.19462574,102770.0,102750.0,0.50887349]
[1747060232001,0.19462574,102770.0,102750.0,0.0958543]
[1747060232002,0.23355219,102760.0,102750.0,0.0958543]
[1747060232233,0.00973207,102750.0,102740.0,0.4301]
[1747060232486,0.21411144,102750.0,102740.0,0.0958543]
[1747060232955,0.00973273,102740.0,102730.0,0.16548213]
[1747060233178,0.23359726,102740.0,102730.0,0.1752161]
[1747060233401,0.21415293,102730.0,102720.0,0.0324]
[1747060233681,0.19466614,102740.0,102720.0,0.17523277]
[1747060233912,0.21417377,102720.0,102710.0,0.03942133]
[1747060234159,0.23371177,102690.0,102680.0,0.1655629]
[1747060234398,0.00973908,102670.0,102660.0,0.22405647]
[1747060234634,0.01947864,102670.0,102660.0,0.0488208]
[1747060234867,0.21427808,102670.0,102660.0,0.0180208]
[1747060235781,0.21427856,102670.0,102660.0,0.0180208]
[1747060236021,0.19479887,102670.0,102660.0,0.0180208]
[1747060236278,0.19479887,102670.0,102660.0,0.3775021]
[1747060236514,0.01947845,102670.0,102660.0,0.9120708]
[1747060236780,0.22401688,102670.0,102660.0,0.63478884]
[1747060237014,0.21427808,102670.0,102660.0,0.1138751]
[1747060237685,0.25627808,102670.0,102660.0,0.1138751]
[1747060237907,0.25627808,102670.0,102660.0,0.0180208]
[1747060238133,0.25627808,102670.0,102600.0,0.02849797]
[1747060238134,0.20465821,102610.0,102600.0,0.02849797]
[1747060238364,0.2046529,102620.0,102600.0,0.66921318]
[1747060238619,0.19490879,102630.0,102600.0,0.66921318]
[1747060238620,0.20465369,102640.0,102620.0,0.02923262]
[1747060238867,0.19489639,102650.0,102620.0,0.01948889]
[1747060239099,0.0097444,102620.0,102610.0,0.033]
[1747060239319,0.21438267,102620.0,102610.0,0.033]
[1747060239543,0.19488512,102630.0,102610.0,0.6898523]
[1747060239777,0.20463737,102650.0,102630.0,0.0292295]
[1747060240020,0.20465328,102620.0,102610.0,0.0315]
[1747060240292,0.21439796,102620.0,102610.0,0.0315]
[1747060240526,0.19490907,102620.0,102610.0,0.0315]
[1747060240757,0.23385396,102630.0,102620.0,0.0315]
[1747060241028,0.19487479,102630.0,102620.0,0.14684338]
[1747060241265,0.19487479,102630.0,102620.0,0.4696]
[1747060241485,0.20461777,102630.0,102620.0,0.3381023]
[1747060241743,0.23384773,102630.0,102620.0,0.4673543]
[1747060241976,0.21436168,102630.0,102620.0,0.4673543]
[1747060242205,0.19487479,102630.0,102620.0,0.71450449]
[1747060242459,0.20463221,102640.0,102630.0,0.0323]
[1747060242709,0.19587665,102670.0,102650.0,0.0194832]
[1747060242966,0.001,102670.0,102660.0,1.23179]
[1747060243225,0.001,102670.0,102660.0,1.24519515]
[1747060243466,0.01948984,102610.0,102600.0,0.06949797]
[1747060243708,0.01948984,102610.0,102600.0,0.05303882]
[1747060243709,0.19040375,102610.0,102600.0,0.05303882]
[1747060243974,0.19040356,102610.0,102600.0,0.00149097]
[1747060245097,0.2358402,102610.0,102600.0,0.00149097]
[1747060245376,0.8350946,102610.0,102600.0,0.00149097]
[1747060245603,0.19040356,102610.0,102600.0,0.01074637]
[1747060245828,0.5073815,102610.0,102600.0,0.01074637]
[1747060246064,0.19284065,102610.0,102600.0,0.01513063]
[1747060246303,0.22584041,102610.0,102600.0,0.01513063]
[1747060246531,0.20040356,102610.0,102600.0,0.01074637]
[1747060246745,0.31494441,102610.0,102600.0,0.01074637]
[1747060246962,0.40580441,102610.0,102600.0,0.01074637]
[1747060247184,0.33794441,102610.0,102600.0,0.01074637]
[1747060247407,0.60079871,102610.0,102600.0,0.01074637]
[1747060247627,0.28625786,102610.0,102600.0,0.01074637]
[1747060247887,0.19040261,102610.0,102600.0,0.01074637]
[1747060248104,0.19040356,102610.0,102600.0,0.01074637]
[1747060248332,0.19040356,102610.0,102600.0,0.01596528]
[1747060248587,0.28625786,102610.0,102600.0,0.01596528]
[1747060248830,0.3641319,102610.0,102600.0,0.01596528]
[1747060249051,0.4641319,102610.0,102600.0,0.02596528]
[1747060249262,1.00632294,102610.0,102600.0,0.02048989]
[1747060249478,0.89389548,102610.0,102600.0,0.02048989]
[1747060249697,0.51917275,102610.0,102600.0,0.02048989]
[1747060249918,0.99389548,102610.0,102600.0,0.01808623]
[1747060250136,0.31454085,102600.0,102590.0,0.05]
[1747060250358,0.62507331,102600.0,102590.0,0.05]
[1747060250810,1.08979604,102600.0,102590.0,0.05]
[1747060251044,1.09979604,102600.0,102590.0,0.05]
[1747060251262,0.21923896,102590.0,102580.0,0.00054373]
[1747060251485,0.30055241,102590.0,102580.0,0.00054373]
[1747060251736,0.32509326,102590.0,102580.0,0.00054373]
[1747060251955,0.31029966,102590.0,102580.0,0.00054373]
[1747060252174,0.31029966,102590.0,102580.0,0.82020882]
[1747060252414,0.29055241,102590.0,102580.0,0.25120582]
[1747060252637,0.30029975,102590.0,102580.0,0.25120582]
[1747060253356,0.25813851,102590.0,102580.0,1.06592855]
[1747060253569,0.2776331,102590.0,102580.0,1.06592855]
[1747060253786,0.26788585,102590.0,102580.0,0.59120582]
[1747060254012,0.26788585,102590.0,102580.0,0.41048782]
[1747060254252,0.17203155,102590.0,102580.0,0.07048782]
[1747060254469,0.18177861,102590.0,102580.0,0.71748082]
[1747060254692,0.18177861,102590.0,102580.0,0.00778782]
[1747060254923,0.27763291,102590.0,102580.0,0.00778782]
[1747060255144,0.19493177,102600.0,102580.0,0.57285514]
[1747060255374,0.27277913,102630.0,102610.0,0.26575725]
[1747060255375,0.19490509,102630.0,102610.0,0.26575725]
[1747060255636,0.22413449,102630.0,102620.0,0.962685]
[1747060255856,0.62024628,102630.0,102620.0,0.35657539]
[1747060256076,0.31024628,102630.0,102620.0,0.69657539]
[1747060256291,0.31998992,102630.0,102620.0,0.69657539]
[1747060256510,0.31998992,102630.0,102620.0,0.54590639]
[1747060256511,0.31024628,102630.0,102620.0,0.54590639]
[1747060256736,0.20465162,102640.0,102620.0,1.87467612]
[1747060256956,0.19592971,102670.0,102660.0,0.0309]
[1747060257171,0.21431534,102660.0,102650.0,0.0309]
[1747060257389,0.21540835,102670.0,102650.0,2.11780113]
[1747060257612,0.19592971,102670.0,102660.0,0.82184655]
[1747060257842,0.001,102670.0,102660.0,1.66467134]
[1747060258072,0.001,102670.0,102660.0,2.58136564]
[1747060258317,0.1948843,102700.0,102690.0,0.0309]
[1747060258549,0.19481465,102720.0,102710.0,0.0309]
[1747060258550,0.01946954,102720.0,102710.0,0.0309]
[1747060258795,0.21417845,102720.0,102710.0,0.0309]
[1747060259020,0.22391326,102720.0,102710.0,0.647742]
[1747060259252,0.29205296,102720.0,102710.0,0.00517011]
[1747060259469,0.29205296,102720.0,102710.0,0.0069236]
[1747060259744,0.38790726,102720.0,102710.0,0.0069236]
[1747060260186,0.21423635,102690.0,102680.0,0.0627]
[1747060260630,0.19474196,102700.0,102690.0,0.0627]
[1747060260863,0.0958543,102700.0,102690.0,1.0621392]
[1747060261088,0.19473306,102710.0,102700.0,0.064]
[1747060261327,0.22394074,102710.0,102700.0,0.174304]
[1747060261549,0.21420507,102710.0,102700.0,0.1598543]
[1747060261785,0.21420507,102710.0,102700.0,0.064]
[1747060262233,0.21421567,102700.0,102690.0,0.00862133]
[1747060262466,0.21421567,102700.0,102690.0,0.03992133]
[1747060262690,0.21421567,102700.0,102660.0,0.0323]
[1747060262691,0.20453862,102670.0,102660.0,0.0323]
[1747060262909,0.20453862,102670.0,102660.0,0.001]
[1747060263132,0.31013219,102670.0,102660.0,0.0658]
[1747060263343,0.31013219,102670.0,102660.0,0.96794695]
[1747060263344,0.29065317,102670.0,102660.0,0.96794695]
[1747060263562,0.19477654,102690.0,102670.0,0.25045892]
[1747060263784,0.19477989,102680.0,102670.0,0.97044104]
[1747060264012,0.20453871,102670.0,102660.0,0.001]
[1747060264226,0.19479887,102670.0,102660.0,0.1601543]
[1747060264444,0.19479887,102670.0,102660.0,0.0643]
[1747060264445,0.21427808,102670.0,102660.0,0.0643]
[1747060264661,0.22427808,102670.0,102660.0,0.001]
[1747060264880,0.41598668,102670.0,102660.0,0.001]
[1747060265098,0.20461833,102630.0,102620.0,0.0329]
[1747060265318,0.19487479,102630.0,102620.0,0.0658]
[1747060265536,0.22408283,102640.0,102630.0,0.0658]
[1747060265748,0.21434071,102640.0,102630.0,0.63645404]
[1747060266012,0.19484841,102660.0,102630.0,1.12331702]
[1747060266230,0.20553795,102670.0,102660.0,0.4047]
[1747060266464,0.19579887,102670.0,102660.0,2.42092885]
[1747060266682,0.22501783,102670.0,102660.0,0.1605543]
[1747060266901,0.21527846,102670.0,102660.0,0.1605543]
[1747060267122,0.21527846,102670.0,102660.0,0.0647]
[1747060267381,0.22401764,102670.0,102660.0,0.0647]
[1747060267598,0.21527827,102670.0,102660.0,0.0647]
[1747060268288,0.21527827,102670.0,102630.0,0.065]
[1747060268289,0.1948558,102640.0,102630.0,0.065]
[1747060268743,0.2907101,102640.0,102630.0,0.065]
[1747060268953,0.22408312,102640.0,102630.0,0.42066]
[1747060269169,0.1948558,102640.0,102630.0,0.065]
[1747060269385,0.21433995,102640.0,102630.0,0.44221604]
[1747060269616,0.20553814,102670.0,102650.0,0.25623625]
[1747060269850,0.2152791,102670.0,102660.0,1.621981]
[1747060270083,0.001,102670.0,102660.0,0.32804611]
[1747060270303,0.001,102670.0,102660.0,1.23664602]
[1747060270523,0.001,102670.0,102660.0,2.17890168]
[1747060270746,0.001,102670.0,102660.0,2.15820387]
[1747060270975,0.21421472,102700.0,102680.0,0.52501772]
[1747060271232,0.19479711,102730.0,102720.0,0.19470308]
[1747060271455,0.0958543,102730.0,102720.0,1.00589047]
[1747060271698,0.19473665,102760.0,102740.0,0.00973245]
[1747060271930,0.0958543,102760.0,102750.0,1.37194513]
[1747060272151,0.04459997,102780.0,102770.0,0.53460883]
[1747060272374,0.14045427,102780.0,102770.0,4.13241965]
[1747060272602,0.21404799,102780.0,102770.0,1.437885]
[1747060272833,0.04459997,102800.0,102790.0,0.20429888]
[1747060273039,0.04459997,102800.0,102790.0,1.99393463]
[1747060273260,0.25860707,102800.0,102790.0,0.29455563]
[1747060273489,0.25860707,102800.0,102750.0,0.34862133]
[1747060273490,0.19464434,102760.0,102750.0,0.34862133]
[1747060273733,0.19462746,102780.0,102770.0,0.24777884]
[1747060273933,0.23915249,102800.0,102790.0,0.0606]
[1747060274168,0.21404875,102780.0,102770.0,0.00862133]
[1747060274381,0.20433921,102770.0,102760.0,0.06922133]
[1747060274596,0.22379976,102770.0,102760.0,0.16507563]
[1747060274822,0.22379881,102770.0,102760.0,0.16507563]
[1747060275086,0.22379995,102770.0,102760.0,0.16507563]
[1747060275302,0.21404856,102780.0,102770.0,0.0606]
[1747060275532,0.20431971,102780.0,102770.0,0.255395]
[1747060275751,0.20431484,102790.0,102770.0,0.84328966]
[1747060275976,0.22377093,102790.0,102780.0,0.596684]
[1747060276197,0.19462471,102770.0,102750.0,0.64024545]
[1747060276426,0.19462471,102770.0,102760.0,0.1285543]
[1747060276427,0.21408535,102770.0,102760.0,0.1285543]
[1747060276666,0.22381505,102770.0,102760.0,0.1285543]
[1747060276899,0.21408516,102770.0,102760.0,0.1280543]
[1747060277133,0.19459038,102780.0,102760.0,0.25852777]
[1747060277397,0.19462826,102760.0,102750.0,0.00862133]
[1747060277643,0.01946594,102740.0,102730.0,0.04082133]
[1747060277890,0.20439868,102740.0,102730.0,0.04152133]
[1747060278128,0.19466614,102740.0,102730.0,0.07342133]
[1747060278352,0.20439868,102740.0,102730.0,0.50025233]
[1747060278588,0.21413246,102740.0,102730.0,0.16747563]
[1747060278837,0.21413246,102740.0,102730.0,0.0311]
[1747060279077,0.21413246,102740.0,102730.0,0.733562]
[1747060279323,0.20439916,102740.0,102730.0,0.16697563]
[1747060279551,0.20439916,102740.0,102730.0,0.03972133]
[1747060279552,0.21413246,102740.0,102730.0,0.03972133]
[1747060279795,0.19466279,102750.0,102740.0,0.0315]
[1747060280034,0.19466279,102750.0,102740.0,0.9316093]
[1747060280035,0.2043787,102750.0,102740.0,0.9316093]
[1747060280265,0.22382182,102760.0,102750.0,0.0627]
[1747060280266,0.19462826,102760.0,102750.0,0.0627]
[1747060280535,0.19459038,102780.0,102770.0,0.0325]
[1747060280536,0.20431914,102780.0,102770.0,0.0325]
[1747060280779,0.20431914,102780.0,102770.0,0.60131763]
[1747060280780,0.19459038,102780.0,102770.0,0.60131763]
[1747060281004,0.19459038,102780.0,102770.0,0.91151763]
[1747060281494,0.21404885,102780.0,102770.0,0.50747563]
[1747060281726,0.21404885,102780.0,102770.0,0.20029233]
[1747060281957,0.19464567,102820.0,102790.0,0.0302]
[1747060282185,0.01945401,102800.0,102790.0,0.06932133]
[1747060282411,0.11774063,102800.0,102790.0,0.37940833]
[1747060282638,0.13476336,102800.0,102790.0,0.26967433]
[1747060282889,0.30986187,102800.0,102790.0,0.06932133]
[1747060283157,0.30986187,102800.0,102790.0,0.18299333]
[1747060283415,0.00972885,102780.0,102770.0,0.59589349]
[1747060283650,0.01945572,102790.0,102780.0,0.84880899]
[1747060283884,0.01945193,102810.0,102800.0,0.0323]
[1747060284113,0.01945193,102810.0,102780.0,0.1281543]
[1747060284114,0.21402792,102790.0,102780.0,0.1281543]
[1747060284346,0.20429983,102790.0,102780.0,0.0958543]
[1747060284582,0.21400767,102800.0,102780.0,0.33418564]
[1747060284805,0.2237562,102790.0,102780.0,0.0302]
[1747060285043,0.10461954,102800.0,102790.0,0.23449888]
[1747060285316,0.19456686,102840.0,102810.0,0.61717439]
[1747060285317,0.20456686,102840.0,102810.0,0.61717439]
[1747060285535,0.5098866,102870.0,102850.0,0.17501215]
[1747060285536,0.3153254,102870.0,102850.0,0.17501215]
[1747060285757,0.0153254,102870.0,102860.0,0.23655984]
[1747060285978,0.0153254,102870.0,102860.0,2.24822984]
[1747060286203,0.0153254,102870.0,102860.0,2.34408414]
[1747060286433,0.0153254,102870.0,102860.0,2.12440314]
[1747060286943,0.0153254,102870.0,102860.0,0.36561414]
[1747060287171,0.0153254,102870.0,102860.0,0.47950414]
[1747060287625,0.0153254,102870.0,102860.0,0.78575514]
[1747060287846,0.0153254,102870.0,102860.0,1.71383616]
[1747060288504,0.0153254,102870.0,102860.0,0.1282543]
[1747060288722,0.0153254,102870.0,102860.0,0.72692884]
[1747060288944,0.0153254,102870.0,102860.0,1.41086416]
[1747060289831,0.0153254,102870.0,102860.0,0.82278314]
[1747060290054,0.0153254,102870.0,102860.0,0.90065718]
[1747060290297,0.19520083,102950.0,102920.0,0.20404066]
[1747060290565,0.19520083,102950.0,102920.0,0.00862133]
[1747060290566,0.20402196,102930.0,102920.0,0.00862133]
[1747060290810,0.20402196,102930.0,102910.0,0.00862133]
[1747060290811,0.20404559,102920.0,102910.0,0.00862133]
[1747060292807,0.19435212,102920.0,102900.0,0.02805719]
[1747060293015,0.29014223,102940.0,102920.0,0.17489312]
[1747060293016,0.19428793,102940.0,102920.0,0.17489312]
[1747060293227,0.00971703,102910.0,102900.0,0.23802711]
[1747060293451,0.00971609,102920.0,102910.0,0.01943416]
[1747060293680,0.03886701,102910.0,102900.0,0.24580228]
[1747060293900,0.21377845,102910.0,102900.0,0.00862133]
[1747060294125,0.19440124,102880.0,102860.0,0.04215008]
[1747060294373,0.19440124,102880.0,102840.0,0.11819788]
[1747060294374,0.21390306,102850.0,102840.0,0.11819788]
[1747060294613,0.21390306,102850.0,102840.0,0.0306]
[1747060294837,0.01944626,102840.0,102830.0,0.28062499]
[1747060295062,0.2333705,102840.0,102830.0,0.1604543]
[1747060295286,0.21392424,102840.0,102830.0,0.1604543]
[1747060295524,0.19445794,102850.0,102830.0,0.20421969]
[1747060295525,0.20418074,102850.0,102830.0,0.20421969]
[1747060295750,0.19440124,102880.0,102850.0,0.17500092]
[1747060295975,0.00971722,102910.0,102880.0,0.20411335]
[1747060296202,0.19434549,102910.0,102880.0,0.3726]
[1747060296422,0.00971855,102890.0,102880.0,0.0326]
[1747060296645,0.02915649,102890.0,102880.0,0.19440094]
[1747060296886,0.01943568,102900.0,102890.0,0.19438205]
[1747060297113,0.00971732,102900.0,102890.0,0.21381829]
[1747060297334,0.19434405,102930.0,102920.0,0.20404102]
[1747060297335,0.02914459,102930.0,102920.0,0.20404102]
[1747060297563,0.01943152,102920.0,102910.0,0.19433953]
[1747060297787,0.20406142,102910.0,102900.0,0.21684499]
[1747060298013,0.20406142,102910.0,102900.0,0.56539958]
[1747060298014,0.02915045,102910.0,102900.0,0.56539958]
[1747060298304,0.02816022,102910.0,102900.0,0.30965295]
[1747060298518,0.008727,102910.0,102900.0,1.49684295]
[1747060299188,0.00095569,102910.0,102900.0,1.49684295]
[1747060299408,0.00080069,102950.0,102940.0,0.21537344]
[1747060299642,0.00971562,102920.0,102910.0,0.20567767]
[1747060299892,0.01943133,102920.0,102910.0,0.32096613]
[1747060300124,0.19428793,102940.0,102920.0,0.19432511]
[1747060300346,0.01942756,102940.0,102930.0,0.29016081]
[1747060300560,0.00971373,102940.0,102930.0,0.29015986]
[1747060300783,0.22342997,102940.0,102930.0,0.29016062]
[1747060301001,0.01943152,102920.0,102910.0,0.58579452]
[1747060301210,0.2040413,102920.0,102910.0,0.1570543]
[1747060301421,0.21375758,102920.0,102910.0,0.1264543]
[1747060301856,0.21375758,102920.0,102900.0,0.11]
[1747060301857,0.2040616,102910.0,102900.0,0.11]
[1747060302299,0.2999159,102910.0,102900.0,0.11]
[1747060302523,0.2040616,102910.0,102900.0,0.11]
[1747060302746,0.21377816,102910.0,102900.0,0.29464509]
[1747060302972,0.21377882,102910.0,102900.0,0.2058543]
[1747060303182,0.30963312,102910.0,102900.0,0.11]
[1747060303410,0.21377882,102910.0,102900.0,0.11]
[1747060303859,0.01943378,102910.0,102900.0,0.28492711]
[1747060304075,0.0194319,102920.0,102910.0,0.19434436]
[1747060304302,0.21377835,102910.0,102900.0,0.11]
[1747060304567,0.91225452,102910.0,102900.0,0.11]
[1747060305417,0.3241735,102910.0,102900.0,0.11]
[1747060305628,0.30963265,102910.0,102900.0,0.11]
[1747060306619,0.30963265,102910.0,102900.0,0.079629]
[1747060306858,0.20406132,102910.0,102900.0,0.079629]
[1747060307124,0.20406132,102910.0,102900.0,0.15750304]
[1747060307125,0.21377835,102910.0,102900.0,0.15750304]
[1747060307338,0.21377835,102910.0,102900.0,0.079629]
[1747060308241,0.00971552,102920.0,102910.0,0.01943407]
[1747060308487,0.01943114,102920.0,102910.0,0.23712834]
[1747060308708,0.2040616,102910.0,102900.0,0.079629]
[1747060308935,0.21377854,102910.0,102900.0,0.079629]
[1747060309171,0.30963284,102910.0,102900.0,0.079629]
[1747060309873,1.21325471,102910.0,102900.0,0.05683643]
[1747060310558,0.32517369,102910.0,102900.0,0.05683643]
[1747060310824,0.21477854,102910.0,102900.0,0.05683643]
[1747060311068,0.31063284,102910.0,102900.0,0.05683643]
[1747060311282,0.91325471,102910.0,102900.0,0.05683643]
[1747060311494,0.79708751,102910.0,102900.0,0.05683643]
[1747060312594,1.17828751,102910.0,102900.0,0.05683643]
[1747060312821,1.24708751,102910.0,102900.0,0.05683643]